bitfinex/quotes_BTCUSD_20240828
["timestamp","ask_amount","ask_price","bid_price","bid_amount"]
[1724855421194,0.16735,59755.0,59751.0,0.16736]
[1724855421539,0.334694,59756.0,59748.0,0.167368]
[1724855421742,0.16736,59752.0,59748.0,0.167368]
[1724855421943,0.0615,59755.0,59743.0,0.0803]
[1724855422139,0.0615,59755.0,59733.0,0.01463987]
[1724855422140,0.0814,59751.0,59737.0,0.0803]
[1724855422484,0.1429,59740.0,59730.0,0.0803]
[1724855422769,0.334802,59737.0,59730.0,0.0803]
[1724855422966,0.02824128,59753.0,59731.0,0.00334822]
[1724855422967,0.167381,59744.0,59731.0,0.00334822]
[1724855423181,0.0643,59748.0,59742.0,0.33477]
[1724855423387,0.1643,59748.0,59739.0,0.167394]
[1724855423589,0.1643,59748.0,59735.0,0.334809]
[1724855423768,0.334746,59747.0,59739.0,0.167394]
[1724855424000,0.1643,59748.0,59735.0,0.334809]
[1724855424001,0.16739,59741.0,59735.0,0.334809]
[1724855424205,0.16739,59741.0,59730.0,0.0803]
[1724855424206,0.02624317,59746.0,59740.0,0.0752]
[1724855424380,0.02624317,59746.0,59745.0,0.167378]
[1724855424612,1.000819,59759.0,59750.0,0.334727]
[1724855424813,1.000819,59759.0,59758.0,0.502024]
[1724855425218,1.000819,59759.0,59758.0,0.836707]
[1724855425366,1.000819,59759.0,59758.0,0.167341]
[1724855425939,1.000819,59759.0,59758.0,0.0764]
[1724855426139,1.000819,59759.0,59755.0,0.334695]
[1724855426372,1.000819,59759.0,59757.0,0.167343]
[1724855426595,0.0788,59758.0,59747.0,0.0778]
[1724855426765,0.0788,59758.0,59751.0,0.167358]
[1724855426766,0.167345,59757.0,59751.0,0.167358]
[1724855426966,0.0788,59758.0,59752.0,0.167357]
[1724855426967,0.246144,59758.0,59752.0,0.167357]
[1724855427170,1.000819,59759.0,59753.0,0.334709]
[1724855427371,1.000819,59759.0,59758.0,0.167341]
[1724855427782,1.000819,59759.0,59747.0,0.0778]
[1724855428246,0.167346,59757.0,59748.0,0.334737]
[1724855428455,0.167346,59757.0,59752.0,0.167358]
[1724855428660,0.334697,59756.0,59746.0,0.334748]
[1724855428874,1.02705576,59759.0,59741.0,0.334778]
[1724855428875,0.16737,59748.0,59741.0,0.334778]
[1724855429123,0.334752,59746.0,59737.0,0.334798]
[1724855429352,0.33475,59746.0,59737.0,0.167399]
[1724855429564,0.167387,59742.0,59737.0,0.167398]
[1724855429788,0.167387,59742.0,59735.0,0.334808]
[1724855429789,0.167385,59743.0,59736.0,0.334804]
[1724855430008,0.334761,59744.0,59735.0,0.33481]
[1724855430233,0.167389,59741.0,59737.0,0.167399]
[1724855430693,0.0634,59745.0,59737.0,0.167399]
[1724855430694,0.334767,59743.0,59737.0,0.167399]
[1724855431111,0.334767,59743.0,59741.0,0.003]
[1724855431112,0.167386,59742.0,59741.0,0.003]
[1724855431325,0.83693,59742.0,59741.0,0.003]
[1724855431542,0.83693,59742.0,59727.0,0.0806]
[1724855431543,0.167396,59739.0,59734.0,0.167408]
[1724855431749,0.334792,59739.0,59731.0,0.334829]
[1724855431955,0.167403,59736.0,59732.0,0.167412]
[1724855432168,0.167407,59735.0,59730.0,0.167419]
[1724855432378,0.167407,59735.0,59731.0,0.167416]
[1724855432583,0.167407,59735.0,59729.0,0.16742]
[1724855432806,0.0785,59742.0,59725.0,0.000902]
[1724855433009,0.167407,59735.0,59730.0,0.167418]
[1724855433210,0.167407,59735.0,59725.0,0.000902]
[1724855433389,0.167407,59735.0,59729.0,0.334842]
[1724855433590,0.167407,59735.0,59731.0,0.167416]
[1724855433800,0.334793,59739.0,59725.0,0.000902]
[1724855433801,0.334828,59732.0,59725.0,0.000902]
[1724855434001,0.1474,59731.0,59725.0,0.000902]
[1724855434415,0.167431,59726.0,59725.0,0.000902]
[1724855434620,0.167427,59728.0,59725.0,0.000902]
[1724855434826,0.1474,59731.0,59725.0,0.000902]
[1724855434827,0.167431,59726.0,59725.0,0.000902]
[1724855435027,0.167431,59726.0,59725.0,0.013902]
[1724855435256,0.502293,59726.0,59725.0,0.013902]
[1724855435381,0.502293,59726.0,59725.0,0.000902]
[1724855435593,0.579693,59726.0,59725.0,0.000902]
[1724855435794,0.167448,59720.0,59719.0,0.009009]
[1724855435996,1.660831,59716.0,59715.0,0.00196388]
[1724855436196,1.82938264,59716.0,59715.0,0.00196388]
[1724855436445,1.075995,59716.0,59715.0,0.00196388]
[1724855436621,0.741077,59716.0,59715.0,0.00196388]
[1724855436820,0.01203612,59714.0,59713.0,0.0127206]
[1724855437019,0.01203612,59714.0,59713.0,0.1791876]
[1724855437276,0.02625926,59716.0,59713.0,0.0117206]
[1724855437481,0.04025926,59716.0,59715.0,0.001]
[1724855437815,0.04025926,59716.0,59715.0,0.00847826]
[1724855438861,0.02625926,59716.0,59715.0,0.50986426]
[1724855439029,0.02725926,59716.0,59715.0,0.59116426]
[1724855439241,0.02725926,59716.0,59715.0,0.92608826]
[1724855439480,0.02725926,59716.0,59715.0,0.59116426]
[1724855439639,0.02725926,59716.0,59715.0,0.98708826]
[1724855440044,0.02725926,59716.0,59715.0,1.32201226]
[1724855440244,0.02725926,59716.0,59715.0,0.98708826]
[1724855440245,0.02625926,59716.0,59715.0,0.98708826]
[1724855440451,0.167421,59730.0,59715.0,0.48470226]
[1724855440653,0.02625151,59726.0,59725.0,0.167433]
[1724855440857,0.02625151,59726.0,59725.0,0.00816553]
[1724855441056,0.19368251,59726.0,59721.0,0.167443]
[1724855441259,0.19368451,59726.0,59722.0,0.00807413]
[1724855441463,0.19368451,59726.0,59721.0,0.167444]
[1724855441693,0.19368451,59726.0,59722.0,0.00807413]
[1724855441899,0.02625151,59726.0,59722.0,0.00807413]
[1724855442094,0.02625151,59726.0,59723.0,0.167438]
[1724855442337,0.02625151,59726.0,59723.0,0.17549001]
[1724855442539,0.02625151,59726.0,59723.0,0.00805201]
[1724855442540,0.167436,59724.0,59723.0,0.00805201]
[1724855442740,0.502309,59724.0,59723.0,0.00805201]
[1724855442943,0.334873,59724.0,59717.0,0.167455]
[1724855443099,0.334873,59724.0,59715.0,0.348921]
[1724855443100,0.167437,59724.0,59715.0,0.348921]
[1724855443301,0.02625151,59726.0,59720.0,0.167446]
[1724855443481,0.167439,59723.0,59718.0,0.167451]
[1724855443686,0.02625151,59726.0,59722.0,0.174441]
[1724855443885,0.19368251,59726.0,59722.0,0.174441]
[1724855444108,0.167434,59725.0,59723.0,0.00806098]
[1724855444571,0.167434,59725.0,59720.0,0.167446]
[1724855444572,0.02625151,59726.0,59722.0,0.167441]
[1724855444774,0.02625151,59726.0,59724.0,0.00806098]
[1724855444971,0.02625151,59726.0,59722.0,0.167441]
[1724855445303,0.02625151,59726.0,59721.0,0.334888]
[1724855445587,0.001,59724.0,59723.0,0.51937898]
[1724855445793,0.02625151,59726.0,59725.0,0.502302]
[1724855446007,0.02625151,59726.0,59725.0,0.83717]
[1724855446217,0.02625151,59726.0,59725.0,1.172038]
[1724855446436,0.02625151,59726.0,59725.0,1.18009898]
[1724855446921,0.00082,59741.0,59740.0,0.167392]
[1724855447165,0.00082,59741.0,59737.0,0.1674]
[1724855447369,0.00082,59741.0,59734.0,0.837042]
[1724855447370,0.02624806,59735.0,59734.0,0.837042]
[1724855447577,0.16821,59741.0,59736.0,0.1674]
[1724855448006,0.02624585,59739.0,59737.0,0.167399]
[1724855448215,0.02624585,59739.0,59737.0,0.17545998]
[1724855448425,0.02624585,59739.0,59738.0,0.309397]
[1724855448631,0.02624585,59739.0,59738.0,0.978987]
[1724855448833,0.02624585,59739.0,59738.0,0.580092]
[1724855448961,0.02624585,59739.0,59738.0,0.58815298]
[1724855449176,0.02624585,59739.0,59738.0,0.17545798]
[1724855449377,0.02624585,59739.0,59738.0,0.00806098]
[1724855449602,0.02624585,59739.0,59738.0,0.17545798]
[1724855449930,0.02724585,59739.0,59738.0,0.85282238]
[1724855450337,0.02624585,59739.0,59738.0,0.84482238]
[1724855450982,0.02624585,59739.0,59738.0,0.51002738]
[1724855451192,0.02624585,59739.0,59738.0,0.00983538]
[1724855451396,0.67092885,59739.0,59738.0,0.00983538]
[1724855451594,0.50553485,59739.0,59728.0,0.334848]
[1724855451825,0.2843274,59739.0,59725.0,0.0832]
[1724855452035,0.7845104,59739.0,59738.0,0.012]
[1724855452237,0.96224858,59739.0,59738.0,0.016]
[1724855452440,1.29703758,59739.0,59738.0,0.016]
[1724855452650,1.39703758,59739.0,59738.0,0.012]
[1724855452857,1.73182658,59739.0,59738.0,0.012]
[1724855453061,1.92537822,59739.0,59738.0,0.012]
[1724855453252,1.75682658,59739.0,59738.0,0.012]
[1724855453459,0.167426,59728.0,59726.0,0.0009009]
[1724855453591,0.334835,59731.0,59726.0,0.0009009]
[1724855453794,0.167428,59727.0,59726.0,0.0009009]
[1724855453995,0.502284,59727.0,59726.0,0.0009009]
[1724855455036,1.171996,59727.0,59726.0,0.0009009]
[1724855455358,1.311396,59727.0,59726.0,0.0149009]
[1724855455518,1.60394764,59727.0,59726.0,0.0269009]
[1724855455723,1.6237375,59727.0,59726.0,0.0269009]
[1724855456144,1.45018586,59727.0,59726.0,0.0269009]
[1724855456374,1.44918586,59727.0,59726.0,0.0149009]
[1724855456587,1.45418586,59727.0,59726.0,0.0009009]
[1724855456799,1.6327375,59727.0,59726.0,0.0019009]
[1724855457599,1.9775935,59727.0,59726.0,0.0019009]
[1724855457840,1.9775935,59727.0,59726.0,0.0029009]
[1724855458044,1.80904186,59727.0,59726.0,0.0029009]
[1724855458243,1.47618586,59727.0,59726.0,0.0019009]
[1724855458444,1.46418586,59727.0,59726.0,0.0009009]
[1724855458753,1.46318586,59727.0,59726.0,0.0029009]
[1724855459257,1.42618586,59727.0,59726.0,0.0019009]
[1724855460077,1.10532986,59727.0,59726.0,0.0019009]
[1724855460280,0.77547386,59727.0,59726.0,0.0029009]
[1724855460428,1.22692564,59727.0,59726.0,0.0029009]
[1724855460619,1.56178164,59727.0,59726.0,0.0029009]
[1724855460886,1.89663764,59727.0,59726.0,0.0019009]
[1724855461084,1.90363764,59727.0,59726.0,0.0029009]
[1724855461411,1.90363764,59727.0,59726.0,0.0019009]
[1724855461412,1.91363764,59727.0,59726.0,0.0019009]
[1724855461612,2.22949364,59727.0,59726.0,0.0009009]
[1724855461847,2.22949364,59727.0,59726.0,0.0019009]
[1724855461848,2.26549364,59727.0,59726.0,0.0019009]
[1724855462008,2.26549364,59727.0,59715.0,0.0009009]
[1724855462009,1.322213,59716.0,59715.0,0.0009009]
[1724855462211,2.36828245,59716.0,59715.0,0.0009009]
[1724855462577,2.49128245,59716.0,59715.0,0.0009009]
[1724855462785,2.17762597,59716.0,59715.0,0.0009009]
[1724855462937,1.83570797,59716.0,59715.0,0.0009009]
[1724855463161,2.00625961,59716.0,59715.0,0.0009009]
[1724855463519,1.83570797,59716.0,59715.0,0.0009009]
[1724855463878,1.83070797,59716.0,59715.0,0.0009009]
[1724855464078,1.84565646,59716.0,59715.0,0.0009009]
[1724855464906,1.85965646,59716.0,59715.0,0.0009009]
[1724855465045,1.87165646,59716.0,59715.0,0.0009009]
[1724855465256,1.90818276,59716.0,59715.0,0.0009009]
[1724855465514,1.90518276,59716.0,59715.0,0.0009009]
[1724855465769,1.90018276,59716.0,59715.0,0.0009009]
[1724855466254,1.90718276,59716.0,59715.0,0.0009009]
[1724855466720,1.85665646,59716.0,59715.0,0.0009009]
[1724855467163,1.84965646,59716.0,59715.0,0.0009009]
[1724855467360,1.84565646,59716.0,59715.0,0.0009009]
[1724855467568,0.64358701,59716.0,59715.0,0.0009009]
[1724855467772,0.62863852,59716.0,59715.0,0.0009009]
[1724855467979,0.63163852,59716.0,59715.0,0.0009009]
[1724855468628,0.64063852,59716.0,59715.0,0.0009009]
[1724855469149,0.96355652,59716.0,59715.0,0.0009009]
[1724855469569,0.96955652,59716.0,59715.0,0.0009009]
[1724855469771,0.96355652,59716.0,59715.0,0.0009009]
[1724855469989,0.29372052,59716.0,59715.0,0.0009009]
[1724855470194,0.63063852,59716.0,59715.0,0.0009009]
[1724855470342,0.12626152,59716.0,59715.0,0.0009009]
[1724855470552,0.02626152,59716.0,59715.0,0.0009009]
[1724855470779,0.02826152,59716.0,59715.0,0.0009009]
[1724855470932,0.02826152,59716.0,59715.0,0.5818869]
[1724855471112,0.02626152,59716.0,59715.0,0.5818869]
[1724855471316,0.19372052,59716.0,59715.0,0.0795009]
[1724855471559,0.52863852,59716.0,59715.0,0.0795009]
[1724855471783,0.19372052,59716.0,59715.0,0.0795009]
[1724855472174,0.19372052,59716.0,59715.0,0.0009009]
[1724855472175,0.52863852,59716.0,59715.0,0.0009009]
[1724855472375,0.02726152,59716.0,59715.0,0.0009009]
[1724855472583,0.03026152,59716.0,59715.0,0.3358249]
[1724855472753,0.02726152,59716.0,59715.0,0.5032869]
[1724855472971,0.02726152,59716.0,59715.0,0.6439869]
[1724855473153,0.02826152,59716.0,59715.0,0.6439869]
[1724855473556,0.02726152,59716.0,59715.0,0.9789109]
[1724855473793,0.000819,59727.0,59726.0,0.981255]
[1724855473960,0.000819,59727.0,59726.0,1.68635045]
[1724855474177,0.000819,59727.0,59726.0,2.02021245]
[1724855474573,0.000819,59727.0,59726.0,1.655979]
[1724855474970,0.001819,59727.0,59726.0,1.648979]
[1724855475153,0.001819,59727.0,59726.0,1.314117]
[1724855475355,0.000819,59727.0,59726.0,1.314117]
[1724855475849,0.002819,59727.0,59726.0,1.316117]
[1724855476088,0.001819,59727.0,59726.0,1.321117]
[1724855476293,0.001819,59727.0,59726.0,1.655979]
[1724855476541,0.002819,59727.0,59726.0,1.655979]
[1724855476697,0.002819,59727.0,59726.0,1.6548799]
[1724855476919,0.001819,59727.0,59726.0,1.3150179]
[1724855477380,0.001819,59727.0,59726.0,1.3200179]
[1724855477600,0.002819,59727.0,59726.0,1.3290179]
[1724855477779,0.002819,59727.0,59726.0,1.3240179]
[1724855477935,0.001819,59727.0,59726.0,1.3200179]
[1724855478348,0.002819,59727.0,59726.0,1.6638799]
[1724855478540,0.001819,59727.0,59726.0,1.6638799]
[1724855478766,0.001819,59727.0,59726.0,1.6548799]
[1724855478969,0.001819,59727.0,59726.0,1.6568799]
[1724855479291,0.001819,59727.0,59726.0,1.6638799]
[1724855479511,0.002819,59727.0,59726.0,1.6638799]
[1724855479737,0.002819,59727.0,59726.0,1.3290179]
[1724855480148,0.002819,59727.0,59726.0,1.6638799]
[1724855480574,0.002819,59727.0,59726.0,2.03011335]
[1724855480780,0.002819,59727.0,59726.0,2.05311335]
[1724855481002,0.001819,59727.0,59726.0,2.04411335]
[1724855481223,0.002819,59727.0,59726.0,2.05311335]
[1724855482174,0.001819,59727.0,59726.0,2.05311335]
[1724855482372,0.001819,59727.0,59726.0,1.6888799]
[1724855482630,0.002819,59727.0,59726.0,1.6888799]
[1724855483218,0.002819,59727.0,59726.0,1.6868799]
[1724855483851,0.002819,59727.0,59726.0,1.6888799]
[1724855485156,0.02624533,59748.0,59740.0,1.171744]
[1724855485364,0.02624533,59748.0,59740.0,1.311544]
[1724855485535,0.5,59750.0,59740.0,1.311544]
[1724855486831,0.00182,59741.0,59740.0,1.311544]
[1724855487285,0.00182,59741.0,59740.0,1.646328]
[1724855487720,0.00282,59741.0,59740.0,1.658328]
[1724855487950,0.00282,59741.0,59740.0,2.55380622]
[1724855488382,0.00182,59741.0,59740.0,2.54380622]
[1724855488597,0.00082,59741.0,59740.0,2.54380622]
[1724855488808,0.00282,59741.0,59740.0,2.55480622]
[1724855489036,0.02623931,59763.0,59758.0,0.182341]
[1724855489259,0.02623931,59763.0,59758.0,2.55931822]
[1724855489493,0.00819,59784.0,59758.0,3.39490645]
[1724855489712,0.334545,59783.0,59758.0,3.37190645]
[1724855489997,0.063,59770.0,59758.0,0.641824]
[1724855490213,0.08,59766.0,59758.0,0.167341]
[1724855490430,0.08,59766.0,59758.0,0.836707]
[1724855490642,0.063,59770.0,59758.0,0.836707]
[1724855490872,0.063,59770.0,59758.0,1.17139]
[1724855491086,0.02623345,59769.0,59758.0,1.17139]
[1724855491767,0.167326,59764.0,59758.0,0.167341]
[1724855492004,0.36085745,59769.0,59758.0,0.516024]
[1724855492005,1.001819,59759.0,59758.0,0.516024]
[1724855492211,1.000819,59759.0,59758.0,0.836707]
[1724855492636,1.001819,59759.0,59758.0,0.863707]
[1724855492848,1.000819,59759.0,59758.0,0.850707]
[1724855493075,1.000819,59759.0,59758.0,0.836707]
[1724855493296,1.001819,59759.0,59758.0,0.844707]
[1724855493728,1.001819,59759.0,59758.0,1.17939]
[1724855493931,1.000819,59759.0,59758.0,1.17139]
[1724855494570,1.000819,59759.0,59758.0,1.18339]
[1724855494975,1.000819,59759.0,59758.0,1.17139]
[1724855495392,1.000819,59759.0,59758.0,1.18539]
[1724855495597,1.001819,59759.0,59758.0,1.19039]
[1724855495804,1.000819,59759.0,59758.0,1.17139]
[1724855496219,1.000819,59759.0,59758.0,1.19039]
[1724855496220,1.001819,59759.0,59758.0,1.19039]
[1724855496636,1.001819,59759.0,59758.0,0.855707]
[1724855497080,1.000819,59759.0,59758.0,0.850707]
[1724855497281,1.001819,59759.0,59758.0,0.855707]
[1724855497525,1.001819,59759.0,59758.0,1.19039]
[1724855497749,1.001819,59759.0,59758.0,1.17639]
[1724855497947,1.001819,59759.0,59758.0,1.19039]
[1724855498597,1.001819,59759.0,59758.0,0.172341]
[1724855498829,1.000819,59759.0,59758.0,0.167341]
[1724855499048,1.000819,59759.0,59758.0,0.181341]
[1724855499249,1.001819,59759.0,59758.0,0.855707]
[1724855499360,1.001819,59759.0,59758.0,0.917207]
[1724855499566,1.000819,59759.0,59758.0,1.25189]
[1724855499766,1.001819,59759.0,59758.0,1.25689]
[1724855500190,1.000819,59759.0,59758.0,1.586573]
[1724855500670,1.001819,59759.0,59758.0,1.591573]
[1724855500874,1.001819,59759.0,59758.0,1.605573]
[1724855501074,1.001819,59759.0,59758.0,1.610573]
[1724855501456,1.001819,59759.0,59758.0,2.003756]
[1724855501576,1.001819,59759.0,59758.0,1.669073]
[1724855501771,1.001819,59759.0,59758.0,1.668073]
[1724855501988,1.001819,59759.0,59758.0,1.33339]
[1724855502193,1.001819,59759.0,59758.0,1.31939]
[1724855502643,1.000819,59759.0,59758.0,1.32839]
[1724855502850,1.001819,59759.0,59758.0,1.666073]
[1724855503195,1.001819,59759.0,59758.0,1.663073]
[1724855503196,1.000819,59759.0,59758.0,1.663073]
[1724855503395,1.001819,59759.0,59758.0,1.666073]
[1724855503850,1.000819,59759.0,59758.0,1.663073]
[1724855504004,1.001819,59759.0,59758.0,1.652073]
[1724855504425,1.000819,59759.0,59758.0,1.663073]
[1724855505193,1.000819,59759.0,59758.0,2.947873]
[1724855505452,1.000819,59759.0,59758.0,2.942873]
[1724855505673,1.000819,59759.0,59758.0,2.57519]
[1724855506115,1.000819,59759.0,59758.0,2.56119]
[1724855506553,1.000819,59759.0,59758.0,2.57519]
[1724855506957,1.000819,59759.0,59758.0,2.56119]
[1724855507359,1.000819,59759.0,59758.0,2.52669]
[1724855507705,1.000819,59759.0,59758.0,1.19939]
[1724855507899,1.000819,59759.0,59758.0,0.014]
[1724855507900,1.065819,59759.0,59758.0,0.014]
[1724855508305,1.065819,59759.0,59758.0,0.028]
[1724855508690,1.065819,59759.0,59758.0,0.195341]
[1724855508896,1.000819,59759.0,59758.0,0.516024]
[1724855509100,1.000819,59759.0,59758.0,0.850707]
[1724855509316,1.000819,59759.0,59758.0,0.864707]
[1724855509517,1.000819,59759.0,59758.0,1.19939]
[1724855509992,1.000819,59759.0,59758.0,1.534073]
[1724855510208,1.000819,59759.0,59758.0,1.520073]
[1724855510734,1.001819,59759.0,59758.0,1.534073]
[1724855510949,1.001819,59759.0,59758.0,1.609373]
[1724855511903,0.834479,59759.0,59758.0,3.90019977]
[1724855512123,0.80708551,59759.0,59758.0,3.91513428]
[1724855512363,0.50540786,59788.0,59783.0,0.167271]
[1724855512581,0.50540786,59788.0,59783.0,0.24921601]
[1724855512582,0.0344179,59787.0,59783.0,0.24921601]
[1724855512821,0.0344179,59787.0,59783.0,1.25284501]
[1724855513047,0.00819,59787.0,59783.0,0.836357]
[1724855513749,0.00819,59787.0,59783.0,0.501814]
[1724855514010,0.0648,59783.0,59776.0,0.334579]
[1724855514229,0.0648,59783.0,59771.0,0.334607]
[1724855514230,0.167283,59779.0,59771.0,0.334607]
[1724855514454,0.167283,59779.0,59773.0,0.167298]
[1724855514683,0.0648,59781.0,59774.0,0.00334592]
[1724855514914,0.0648,59781.0,59777.0,0.334574]
[1724855515142,0.0648,59781.0,59778.0,0.167285]
[1724855515605,0.0648,59781.0,59777.0,0.167286]
[1724855516101,0.232077,59781.0,59771.0,0.334605]
[1724855516321,0.232077,59781.0,59777.0,0.014]
[1724855516322,0.16728,59780.0,59777.0,0.014]
[1724855516590,0.334561,59780.0,59777.0,0.014]
[1724855516809,0.167285,59778.0,59777.0,0.014]
[1724855517534,0.579956,59778.0,59777.0,0.025]
[1724855517745,0.579956,59778.0,59777.0,0.011]
[1724855518012,0.579956,59778.0,59772.0,0.167301]
[1724855518231,0.579956,59778.0,59767.0,0.334628]
[1724855518232,0.0648,59781.0,59780.0,0.16728]
[1724855518738,0.0648,59781.0,59780.0,0.50184]
[1724855518955,0.0648,59781.0,59780.0,0.16728]
[1724855519212,0.0648,59781.0,59777.0,0.028]
[1724855519468,0.232077,59781.0,59777.0,0.181286]
[1724855519666,0.232077,59781.0,59780.0,0.014]
[1724855521018,0.0648,59781.0,59780.0,0.014]
[1724855521467,0.232077,59781.0,59780.0,0.014]
[1724855521741,0.566631,59781.0,59780.0,0.014]
[1724855521966,0.901185,59781.0,59780.0,0.011]
[1724855522342,0.566631,59781.0,59780.0,0.011]
[1724855522640,0.0648,59781.0,59780.0,0.011]
[1724855522864,0.02622752,59782.0,59781.0,0.167277]
[1724855523340,0.02622752,59782.0,59781.0,0.836385]
[1724855524059,0.00819,59784.0,59783.0,0.167271]
[1724855524534,0.00819,59784.0,59781.0,0.167277]
[1724855524986,0.342729,59784.0,59776.0,0.334578]
[1724855525247,0.836371,59782.0,59781.0,0.023]
[1724855525483,0.971771,59782.0,59781.0,0.013]
[1724855525717,1.306319,59782.0,59781.0,0.013]
[1724855525939,0.836482,59774.0,59766.0,0.7824]
[1724855526168,0.501889,59774.0,59768.0,0.167313]
[1724855526447,0.167296,59774.0,59770.0,0.167306]
[1724855526671,0.167295,59775.0,59771.0,0.167304]
[1724855526965,0.334585,59776.0,59771.0,0.167304]
[1724855526966,0.167293,59776.0,59771.0,0.167303]
[1724855527190,0.501889,59774.0,59773.0,0.4922]
[1724855527438,0.1354,59782.0,59773.0,0.014]
[1724855527656,0.02622836,59783.0,59775.0,0.0788]
[1724855527881,0.167272,59783.0,59777.0,0.334576]
[1724855528088,0.342731,59786.0,59777.0,0.00334543]
[1724855528089,0.02622529,59780.0,59777.0,0.00334543]
[1724855528318,0.02622529,59780.0,59779.0,0.167282]
[1724855528537,0.02622529,59780.0,59777.0,0.167285]
[1724855528793,0.02622529,59780.0,59779.0,0.167282]
[1724855529307,0.02622529,59780.0,59779.0,0.501847]
[1724855529562,0.02622529,59780.0,59779.0,0.167282]
[1724855529786,0.02622529,59780.0,59779.0,0.501847]
[1724855530209,0.02622529,59780.0,59779.0,0.167282]
[1724855530361,0.02622529,59780.0,59777.0,0.334575]
[1724855530570,0.167285,59778.0,59777.0,0.003]
[1724855530780,0.167285,59778.0,59766.0,0.005]
[1724855530781,0.0646,59777.0,59766.0,0.416938]
[1724855530991,0.0646,59777.0,59770.0,0.167306]
[1724855530992,0.167297,59774.0,59770.0,0.167306]
[1724855531201,0.334583,59776.0,59771.0,0.167304]
[1724855531202,0.167295,59775.0,59771.0,0.167304]
[1724855532513,0.167296,59774.0,59769.0,0.167309]
[1724855532734,0.1673,59773.0,59769.0,0.167309]
[1724855532965,0.334584,59776.0,59770.0,0.167307]
[1724855533160,0.001,59778.0,59775.0,0.167292]
[1724855533429,0.001,59778.0,59773.0,0.334599]
[1724855533632,0.001,59778.0,59763.0,0.4832]
[1724855533633,0.001,59778.0,59777.0,0.167288]
[1724855533861,0.02622529,59780.0,59777.0,0.167288]
[1724855533862,0.02622529,59780.0,59779.0,0.167282]
[1724855534255,0.02622529,59780.0,59779.0,0.501847]
[1724855535330,0.02622529,59780.0,59779.0,0.509847]
[1724855535491,0.02622529,59780.0,59779.0,0.501847]
[1724855535683,0.02622529,59780.0,59779.0,0.836412]
[1724855536343,0.02622529,59780.0,59779.0,0.501847]
[1724855536519,0.02622529,59780.0,59779.0,0.836412]
[1724855536727,0.02622529,59780.0,59779.0,0.501847]
[1724855537151,0.02622529,59780.0,59779.0,0.515847]
[1724855537357,0.02622529,59780.0,59779.0,0.014]
[1724855537559,1.00642529,59780.0,59779.0,0.014]
[1724855537761,1.34098529,59780.0,59779.0,0.014]
[1724855538080,1.34098529,59780.0,59779.0,0.028]
[1724855538726,1.00642529,59780.0,59779.0,0.014]
[1724855538854,0.02622529,59780.0,59779.0,0.014]
[1724855539050,0.02622529,59780.0,59779.0,0.006]
[1724855539263,0.02622529,59780.0,59779.0,0.347565]
[1724855539462,0.02622529,59780.0,59779.0,0.514847]
[1724855539663,0.02622529,59780.0,59779.0,0.855412]
[1724855539915,0.02622529,59780.0,59779.0,0.507847]
[1724855540122,0.02622529,59780.0,59779.0,0.173282]
[1724855540318,0.02622529,59780.0,59779.0,0.187282]
[1724855540760,0.02622529,59780.0,59779.0,0.173282]
[1724855540989,0.02622529,59780.0,59779.0,0.507847]
[1724855541197,0.02622529,59780.0,59779.0,0.849412]
[1724855541404,0.000818,59781.0,59780.0,0.50184]
[1724855541552,0.000818,59781.0,59780.0,0.8364]
[1724855542357,0.000818,59781.0,59780.0,0.16728]
[1724855542758,0.000818,59781.0,59780.0,0.50184]
[1724855543168,0.000818,59781.0,59780.0,0.51584]
[1724855543395,0.000818,59781.0,59780.0,0.18128]
[1724855543794,0.000818,59781.0,59780.0,0.19528]
[1724855543997,0.000818,59781.0,59780.0,0.52984]
[1724855544195,0.000818,59781.0,59780.0,0.9465]
[1724855544365,0.000818,59781.0,59780.0,1.28106]
[1724855545675,0.000818,59781.0,59780.0,0.1101]
[1724855545925,0.000818,59781.0,59780.0,0.19528]
[1724855546124,0.000818,59781.0,59780.0,0.52984]
[1724855547272,0.000818,59781.0,59780.0,1.27916]
[1724855547476,0.000818,59781.0,59780.0,1.34506]
[1724855548562,0.000818,59781.0,59780.0,1.34306]
[1724855548738,0.000818,59781.0,59780.0,1.34506]
[1724855548942,0.000818,59781.0,59780.0,1.34306]
[1724855549365,0.000818,59781.0,59780.0,1.68262]
[1724855549733,0.000818,59781.0,59780.0,1.69462]
[1724855549938,0.000818,59781.0,59780.0,1.71033312]
[1724855550073,0.000818,59781.0,59780.0,1.81033312]
[1724855550284,0.000818,59781.0,59780.0,1.85576718]
[1724855550486,0.000818,59781.0,59780.0,1.81933283]
[1724855550715,0.000818,59781.0,59780.0,1.83133283]
[1724855550918,0.000818,59781.0,59780.0,1.37887283]
[1724855551072,0.000818,59781.0,59780.0,1.0426]
[1724855552325,0.000818,59781.0,59780.0,1.0476]
[1724855552977,0.000818,59781.0,59780.0,1.37716]
[1724855553180,0.000818,59781.0,59780.0,0.9426]
[1724855553397,0.000818,59781.0,59780.0,0.028]
[1724855553529,0.137418,59781.0,59780.0,0.19528]
[1724855553935,0.000818,59781.0,59780.0,0.8644]
[1724855554178,0.000818,59781.0,59780.0,0.19528]
[1724855554370,0.000818,59781.0,59780.0,0.52984]
[1724855554573,0.000818,59781.0,59780.0,0.19528]
[1724855554782,0.000818,59781.0,59780.0,0.014]
[1724855554974,0.000818,59781.0,59780.0,0.012]
[1724855555278,0.000818,59781.0,59780.0,0.19328]
[1724855555493,0.000818,59781.0,59780.0,0.52784]
[1724855556061,0.000818,59781.0,59780.0,1.25276]
[1724855556303,0.000818,59781.0,59780.0,0.9322]
[1724855556523,0.000818,59781.0,59780.0,0.9412]
[1724855556717,0.000818,59781.0,59780.0,0.9272]
[1724855556958,0.000818,59781.0,59780.0,0.9182]
[1724855557965,0.000818,59781.0,59780.0,0.16728]
[1724855558156,0.000818,59781.0,59780.0,0.51584]
[1724855558324,0.000818,59781.0,59780.0,0.18128]
[1724855558689,0.000818,59781.0,59780.0,0.51584]